fUSD/lending_fUSD_20250504
["ID","MTS","AMOUNT","RATE_DAILY","PERIOD"]
[359841929,1746367832573,-500.0,0.00019625,2]
[359841930,1746367832583,-500.0,0.00019625,2]
[359841931,1746367832592,-500.0,0.00019625,2]
[359841932,1746367832602,-500.0,0.00019625,2]
[359841933,1746367832611,-500.0,0.00019625,2]
[359841934,1746367832620,-500.0,0.00019625,2]
[359841936,1746367832630,-500.0,0.00019625,2]
[359841938,1746367832640,-500.0,0.00019625,2]
[359841940,1746367832649,-500.0,0.00019625,2]
[359841942,1746367832659,-500.0,0.00019625,2]
[359841944,1746367832669,-500.0,0.00019625,2]
[359841947,1746367832679,-186.51264291,0.00019625,2]
[359841950,1746367832691,-313.48735709,0.00019625,2]
[359841952,1746367832701,-386.51264291,0.00019625,2]
[359841956,1746367832729,-113.48735709,0.00019625,2]
[359841958,1746367832739,-500.0,0.00019625,2]
[359841960,1746367832750,-75.92321667,0.00019625,2]
[359841962,1746367832761,-255.97559429,0.00019625,2]
[359841964,1746367832773,-168.10118904,0.00019625,2]
[359841966,1746367832783,-500.0,0.00019625,2]
[359841968,1746367832792,-500.0,0.00019625,2]
[359841970,1746367832802,-500.0,0.00019625,2]
[359841973,1746367832811,-500.0,0.00019625,2]
[359841974,1746367832821,-9.32580096,0.00019625,2]
[359841977,1746367832837,-225.56350223,0.00019625,2]
[359841979,1746367832847,-3231.87339583,0.00019626,2]
[359841981,1746367832859,-700.353895,0.00019626,2]
[359842015,1746367838155,-522.14028,0.00019626,2]
[359842016,1746367838164,-1019.84867165,0.00019626,2]
[359842017,1746367838173,-7331.67341633,0.00019626,2]
[359842018,1746367838211,-1903.46099217,0.00019626,2]
[359842019,1746367838271,-633.053,0.00019626,2]
[359842020,1746367838281,-1940.910761,0.00019626,2]
[359842033,1746367840341,-391.60521,0.00019626,2]
[359842034,1746367840352,-764.88650374,0.00019626,2]
[359842035,1746367840362,-120581.80793967,0.00019626,2]
[359842036,1746367840371,-22102.44462815,0.00019641,2]
[359842037,1746367840381,-165.99643378,0.00019653,2]
[359842038,1746367840390,-6562.97702978,0.00019687,2]
[359842039,1746367840400,-165.99643371,0.00019688,2]
[359842040,1746367840410,-589.98642906,0.00019708,2]
[359842041,1746367840421,-500.0,0.00019716,2]
[359842042,1746367840431,-2000.0,0.00019716,2]
[359842043,1746367840441,-200.0,0.00019716,2]
[359842044,1746367840450,-6562.97702978,0.00019717,2]
[359842045,1746367840460,-165.99643371,0.00019724,2]
[359842046,1746367840470,-450.0,0.00019726,2]
[359842047,1746367840480,-450.0,0.00019726,2]
[359842048,1746367840489,-218.98702398,0.00019726,2]
[359842049,1746367840499,-450.0,0.00019726,2]
[359842050,1746367840508,-450.0,0.00019726,2]
[359842051,1746367840518,-450.0,0.00019726,2]
[359842052,1746367840527,-450.0,0.00019726,2]
[359842053,1746367840536,-450.0,0.00019726,2]
[359842054,1746367840547,-211.02,0.00019726,2]
[359842055,1746367840556,-450.0,0.00019726,2]
[359842056,1746367840566,-450.0,0.00019726,2]
[359842057,1746367840575,-450.0,0.00019726,2]
[359842058,1746367840585,-336.89,0.00019726,2]
[359842059,1746367840594,-450.0,0.00019726,2]
[359842060,1746367840603,-450.0,0.00019726,2]
[359842061,1746367840613,-494.98248221,0.00019726,2]
[359842062,1746367840622,-450.0,0.00019726,2]
[359842063,1746367840631,-450.0,0.00019726,2]
[359842064,1746367840640,-450.0,0.00019726,2]
[359842065,1746367840650,-524.59,0.00019726,2]
[359842066,1746367840659,-450.0,0.00019726,2]
[359842067,1746367840668,-513.53619116,0.00019726,2]
[359842068,1746367840677,-470.0,0.00019726,2]
[359842069,1746367840687,-225.11,0.00019726,2]
[359842070,1746367840696,-450.0,0.00019726,2]
[359842071,1746367840705,-450.0,0.00019726,2]
[359842072,1746367840714,-450.0,0.00019726,2]
[359842073,1746367840723,-250.0,0.00019726,2]
[359842074,1746367840732,-235.18,0.00019726,2]
[359842075,1746367840741,-450.0,0.00019726,2]
[359842076,1746367840751,-450.0,0.00019726,2]
[359842077,1746367840760,-450.0,0.00019726,2]
[359842078,1746367840769,-450.0,0.00019726,2]
[359842079,1746367840779,-450.0,0.00019726,2]
[359842080,1746367840788,-524.27,0.00019726,2]
[359842081,1746367840797,-450.0,0.00019726,2]
[359842083,1746367840807,-450.0,0.00019726,2]
[359842084,1746367840816,-450.0,0.00019726,2]
[359842085,1746367840825,-450.0,0.00019726,2]
[359842086,1746367840834,-450.0,0.00019726,2]
[359842087,1746367840843,-470.0,0.00019726,2]
[359842088,1746367840853,-450.0,0.00019726,2]
[359842089,1746367840862,-470.0,0.00019726,2]
[359842091,1746367840871,-450.0,0.00019726,2]
[359842093,1746367840880,-450.0,0.00019726,2]
[359842094,1746367840889,-450.0,0.00019726,2]
[359842095,1746367840898,-527.91,0.00019726,2]
[359842096,1746367840908,-450.0,0.00019726,2]
[359842097,1746367840918,-450.0,0.00019726,2]
[359842098,1746367840927,-450.0,0.00019726,2]
[359842099,1746367840936,-470.0,0.00019726,2]
[359842100,1746367840945,-470.0,0.00019726,2]
[359842101,1746367840955,-450.0,0.00019726,2]
[359842102,1746367840965,-450.0,0.00019726,2]
[359842103,1746367840974,-490.0,0.00019726,2]
[359842104,1746367840983,-450.0,0.00019726,2]
[359842105,1746367840992,-470.0,0.00019726,2]
[359842106,1746367841001,-450.0,0.00019726,2]
[359842107,1746367841011,-450.0,0.00019726,2]
[359842108,1746367841020,-450.0,0.00019726,2]
[359842109,1746367841028,-450.0,0.00019726,2]
[359842110,1746367841038,-450.0,0.00019726,2]
[359842111,1746367841047,-470.0,0.00019726,2]
[359842112,1746367841057,-450.0,0.00019726,2]
[359842113,1746367841068,-450.0,0.00019726,2]
[359842114,1746367841078,-450.0,0.00019726,2]
[359842115,1746367841087,-450.0,0.00019726,2]
[359842116,1746367841096,-450.0,0.00019726,2]
[359842117,1746367841106,-470.0,0.00019726,2]
[359842118,1746367841116,-450.0,0.00019726,2]
[359842119,1746367841125,-450.0,0.00019726,2]
[359842120,1746367841136,-470.0,0.00019726,2]
[359842121,1746367841145,-450.0,0.00019726,2]
[359842122,1746367841154,-450.0,0.00019726,2]
[359842123,1746367841165,-1318.74,0.00019726,2]
[359842124,1746367841175,-450.0,0.00019726,2]
[359842125,1746367841186,-470.0,0.00019726,2]
[359842126,1746367841196,-450.0,0.00019726,2]
[359842127,1746367841205,-450.0,0.00019726,2]
[359842128,1746367841215,-450.0,0.00019726,2]
[359842129,1746367841226,-450.0,0.00019726,2]
[359842130,1746367841239,-470.0,0.00019726,2]
[359842131,1746367841249,-450.0,0.00019726,2]
[359842132,1746367841259,-450.0,0.00019726,2]
[359842133,1746367841268,-517.29,0.00019726,2]
[359842134,1746367841277,-450.0,0.00019726,2]
[359842135,1746367841286,-470.0,0.00019726,2]
[359842136,1746367841296,-450.0,0.00019726,2]
[359842137,1746367841306,-450.0,0.00019726,2]
[359842138,1746367841315,-450.0,0.00019726,2]
[359842139,1746367841324,-450.0,0.00019726,2]
[359842140,1746367841333,-450.0,0.00019726,2]
[359842141,1746367841342,-450.0,0.00019726,2]
[359842142,1746367841351,-450.0,0.00019726,2]
[359842143,1746367841360,-450.0,0.00019726,2]
[359842144,1746367841370,-500.0,0.00019726,2]
[359842145,1746367841379,-171.43108855,0.00019726,2]
[359842146,1746367841387,-450.0,0.00019726,2]
[359842147,1746367841399,-450.0,0.00019726,2]
[359842148,1746367841408,-450.0,0.00019726,2]
[359842149,1746367841420,-450.0,0.00019726,2]
[359842150,1746367841430,-450.0,0.00019726,2]
[359842151,1746367841440,-450.0,0.00019726,2]
[359842152,1746367841449,-450.0,0.00019726,2]
[359842153,1746367841458,-394.92,0.00019726,2]
[359842154,1746367841469,-450.0,0.00019726,2]
[359842155,1746367841478,-450.0,0.00019726,2]
[359842156,1746367841487,-500.0,0.00019726,2]
[359842157,1746367841498,-450.0,0.00019726,2]
[359842158,1746367841507,-450.0,0.00019726,2]
[359842159,1746367841517,-450.0,0.00019726,2]
[359842160,1746367841526,-450.0,0.00019726,2]
[359842161,1746367841535,-450.0,0.00019726,2]
[359842162,1746367841544,-450.0,0.00019726,2]
[359842163,1746367841553,-252.6,0.00019726,2]
[359842164,1746367841562,-450.0,0.00019726,2]
[359842165,1746367841571,-460.97,0.00019726,2]
[359842166,1746367841581,-450.0,0.00019726,2]
[359842167,1746367841591,-450.0,0.00019726,2]
[359842168,1746367841600,-547.59,0.00019726,2]
[359842169,1746367841610,-465.1676362,0.00019726,2]
[359842170,1746367841619,-450.0,0.00019726,2]
[359842171,1746367841628,-450.0,0.00019726,2]
[359842172,1746367841638,-157.54231077,0.00019726,2]
[359842173,1746367841647,-198.03551519,0.00019726,2]
[359842174,1746367841657,-470.0,0.00019726,2]
[359842175,1746367841666,-450.0,0.00019726,2]
[359842176,1746367841675,-376.35994099,0.00019726,2]
[359842177,1746367841685,-450.0,0.00019726,2]
[359842178,1746367841695,-500.0,0.00019726,2]
[359842179,1746367841704,-450.0,0.00019726,2]
[359842180,1746367841713,-450.0,0.00019726,2]
[359842181,1746367841722,-450.0,0.00019726,2]
[359842182,1746367841732,-450.0,0.00019726,2]
[359842183,1746367841741,-450.0,0.00019726,2]
[359842184,1746367841750,-476.95068296,0.00019726,2]
[359842185,1746367841760,-291.86,0.00019726,2]
[359842186,1746367841769,-500.0,0.00019726,2]
[359842187,1746367841778,-450.0,0.00019726,2]
[359842188,1746367841787,-450.0,0.00019726,2]
[359842189,1746367841796,-450.0,0.00019726,2]
[359842190,1746367841806,-579.83246673,0.00019726,2]
[359842191,1746367841815,-450.0,0.00019726,2]
[359842192,1746367841824,-474.94907018,0.00019726,2]
[359842193,1746367841834,-470.0,0.00019726,2]
[359842194,1746367841843,-450.0,0.00019726,2]
[359842195,1746367841852,-971.1,0.00019726,2]
[359842196,1746367841862,-450.0,0.00019726,2]
[359842197,1746367841871,-450.0,0.00019726,2]
[359842198,1746367841880,-167.47,0.00019726,2]
[359842199,1746367841889,-450.0,0.00019726,2]
[359842200,1746367841899,-3081.9,0.00019726,2]
[359842201,1746367841907,-470.0,0.00019726,2]
[359842202,1746367841917,-450.0,0.00019726,2]
[359842203,1746367841926,-450.0,0.00019726,2]
[359842204,1746367841935,-529.04,0.00019726,2]
[359842205,1746367841944,-470.0,0.00019726,2]
[359842206,1746367841953,-504.08,0.00019726,2]
[359842207,1746367841963,-450.0,0.00019726,2]
[359842208,1746367841972,-2770.47,0.00019726,2]
[359842209,1746367841981,-450.0,0.00019726,2]
[359842210,1746367841990,-450.0,0.00019726,2]
[359842211,1746367841999,-330.0,0.00019726,2]
[359842212,1746367842008,-450.0,0.00019726,2]
[359842213,1746367842017,-470.0,0.00019726,2]
[359842214,1746367842027,-450.0,0.00019726,2]
[359842215,1746367842036,-470.0,0.00019726,2]
[359842216,1746367842044,-450.0,0.00019726,2]
[359842217,1746367842053,-450.0,0.00019726,2]
[359842218,1746367842062,-450.0,0.00019726,2]
[359842219,1746367842071,-450.0,0.00019726,2]
[359842220,1746367842081,-450.0,0.00019726,2]
[359842221,1746367842090,-580.02,0.00019726,2]
[359842222,1746367842099,-599.41,0.00019726,2]
[359842223,1746367842108,-517.57,0.00019726,2]
[359842224,1746367842117,-434.06987554,0.00019726,2]
[359842225,1746367842126,-749.23,0.00019726,2]
[359842226,1746367842135,-425.77,0.00019726,2]
[359842227,1746367842144,-450.0,0.00019726,2]
[359842228,1746367842153,-450.0,0.00019726,2]
[359842229,1746367842162,-450.0,0.00019726,2]
[359842230,1746367842171,-450.0,0.00019726,2]
[359842231,1746367842180,-470.0,0.00019726,2]
[359842232,1746367842189,-450.0,0.00019726,2]
[359842233,1746367842198,-450.0,0.00019726,2]
[359842234,1746367842207,-450.0,0.00019726,2]
[359842235,1746367842216,-450.0,0.00019726,2]
[359842236,1746367842225,-334.36,0.00019726,2]
[359842237,1746367842234,-453.02,0.00019726,2]
[359842238,1746367842243,-470.0,0.00019726,2]
[359842239,1746367842252,-450.0,0.00019726,2]
[359842240,1746367842261,-450.0,0.00019726,2]
[359842241,1746367842271,-450.0,0.00019726,2]
[359842242,1746367842279,-450.0,0.00019726,2]
[359842243,1746367842288,-300.7,0.00019726,2]
[359842244,1746367842297,-450.0,0.00019726,2]
[359842245,1746367842306,-470.0,0.00019726,2]
[359842246,1746367842315,-30732.35,0.00019726,2]
[359842247,1746367842324,-202.69,0.00019726,2]
[359842248,1746367842334,-470.0,0.00019726,2]
[359842249,1746367842343,-450.0,0.00019726,2]
[359842250,1746367842352,-154.39,0.00019726,2]
[359842251,1746367842361,-450.0,0.00019726,2]
[359842252,1746367842370,-450.0,0.00019726,2]
[359842253,1746367842379,-450.0,0.00019726,2]
[359842254,1746367842389,-450.0,0.00019726,2]
[359842255,1746367842398,-450.0,0.00019726,2]
[359842256,1746367842407,-590.56,0.00019726,2]
[359842257,1746367842416,-450.0,0.00019726,2]
[359842258,1746367842426,-450.0,0.00019726,2]
[359842259,1746367842435,-161.18162203,0.00019726,2]
[359842260,1746367842444,-470.0,0.00019726,2]
[359842261,1746367842453,-450.0,0.00019726,2]
[359842262,1746367842464,-450.0,0.00019726,2]
[359842263,1746367842473,-450.0,0.00019726,2]
[359842264,1746367842482,-450.0,0.00019726,2]
[359842265,1746367842492,-450.0,0.00019726,2]
[359842266,1746367842501,-450.0,0.00019726,2]
[359842267,1746367842511,-450.0,0.00019726,2]
[359842268,1746367842520,-500.0,0.00019726,2]
[359842269,1746367842529,-450.0,0.00019726,2]
[359842270,1746367842539,-510.11,0.00019726,2]
[359842271,1746367842548,-450.0,0.00019726,2]
[359842272,1746367842557,-1287.01,0.00019726,2]
[359842273,1746367842567,-470.0,0.00019726,2]
[359842274,1746367842576,-450.0,0.00019726,2]
[359842275,1746367842586,-450.0,0.00019726,2]
[359842276,1746367842595,-217.35,0.00019726,2]
[359842277,1746367842605,-1416.49,0.00019726,2]
[359842278,1746367842614,-564.18,0.00019726,2]
[359842279,1746367842623,-450.0,0.00019726,2]
[359842280,1746367842634,-450.0,0.00019726,2]
[359842281,1746367842644,-1732.81,0.00019726,2]
[359842282,1746367842653,-309.74912706,0.00019726,2]
[359842283,1746367842663,-450.0,0.00019726,2]
[359842284,1746367842672,-450.0,0.00019726,2]
[359842285,1746367842681,-450.0,0.00019726,2]
[359842286,1746367842691,-569.44,0.00019726,2]
[359842287,1746367842700,-450.0,0.00019726,2]
[359842288,1746367842710,-514.35,0.00019726,2]
[359842289,1746367842719,-450.0,0.00019726,2]
[359842290,1746367842728,-450.0,0.00019726,2]
[359842291,1746367842738,-450.0,0.00019726,2]
[359842292,1746367842747,-226.88,0.00019726,2]
[359842293,1746367842757,-450.0,0.00019726,2]
[359842294,1746367842767,-450.0,0.00019726,2]
[359842295,1746367842776,-450.0,0.00019726,2]
[359842296,1746367842785,-450.0,0.00019726,2]
[359842297,1746367842795,-450.0,0.00019726,2]
[359842298,1746367842804,-450.0,0.00019726,2]
[359842299,1746367842813,-492.61,0.00019726,2]
[359842300,1746367842823,-450.0,0.00019726,2]
[359842301,1746367842832,-470.0,0.00019726,2]
[359842302,1746367842841,-450.0,0.00019726,2]
[359842303,1746367842850,-1214.24,0.00019726,2]
[359842304,1746367842860,-584.49,0.00019726,2]
[359842305,1746367842869,-450.0,0.00019726,2]
[359842306,1746367842879,-1159.13,0.00019726,2]
[359842307,1746367842888,-450.0,0.00019726,2]
[359842308,1746367842897,-450.0,0.00019726,2]
[359842309,1746367842906,-450.0,0.00019726,2]
[359842310,1746367842915,-450.0,0.00019726,2]
[359842311,1746367842925,-450.0,0.00019726,2]
[359842312,1746367842935,-450.0,0.00019726,2]
[359842313,1746367842944,-742.88,0.00019726,2]
[359842314,1746367842953,-500.0,0.00019726,2]
[359842315,1746367842962,-450.0,0.00019726,2]
[359842316,1746367842972,-450.0,0.00019726,2]
[359842317,1746367842980,-450.0,0.00019726,2]
[359842318,1746367842990,-699.07,0.00019726,2]
[359842319,1746367842999,-450.0,0.00019726,2]
[359842320,1746367843008,-450.0,0.00019726,2]
[359842321,1746367843017,-550.09,0.00019726,2]
[359842322,1746367843026,-500.0,0.00019726,2]
[359842323,1746367843036,-156.74979693,0.00019726,2]
[359842324,1746367843046,-467.03,0.00019726,2]
[359842325,1746367843055,-450.0,0.00019726,2]
[359842326,1746367843065,-470.0,0.00019726,2]
[359842327,1746367843074,-450.0,0.00019726,2]
[359842328,1746367843083,-450.0,0.00019726,2]
[359842329,1746367843092,-490.0,0.00019726,2]
[359842330,1746367843101,-450.0,0.00019726,2]
[359842331,1746367843111,-450.0,0.00019726,2]
[359842332,1746367843122,-842.82,0.00019726,2]
[359842333,1746367843132,-450.0,0.00019726,2]
[359842334,1746367843141,-450.0,0.00019726,2]
[359842335,1746367843150,-450.0,0.00019726,2]
[359842336,1746367843160,-296.30003719,0.00019726,2]
[359842338,1746367843169,-16624.09,0.00019726,2]
[359842340,1746367843177,-299.1856,0.00019726,2]
[359842342,1746367843186,-450.0,0.00019726,2]
[359842344,1746367843195,-450.0,0.00019726,2]
[359842346,1746367843204,-490.0,0.00019726,2]
[359842347,1746367843213,-450.0,0.00019726,2]
[359842348,1746367843221,-500.0,0.00019726,2]
[359842349,1746367843231,-450.0,0.00019726,2]
[359842350,1746367843240,-450.0,0.00019726,2]
[359842351,1746367843250,-589.98642905,0.00019731,2]
[359842353,1746367843260,-6562.97702978,0.00019748,2]
[359842355,1746367843269,-500.0,0.00019752,2]
[359842357,1746367843278,-450.0,0.00019753,2]
[359842359,1746367843287,-490.39837943,0.00019753,2]
[359842361,1746367843297,-450.0,0.00019753,2]
[359842363,1746367843306,-164.35,0.00019753,2]
[359842365,1746367843315,-538.21,0.00019753,2]
[359842368,1746367843326,-450.0,0.00019753,2]
[359842370,1746367843335,-239.41400175,0.00019753,2]
[359842372,1746367843344,-450.0,0.00019753,2]
[359842373,1746367843353,-450.0,0.00019753,2]
[359842375,1746367843361,-388.67368502,0.00019753,2]
[359842376,1746367843369,-470.0,0.00019753,2]
[359842377,1746367843377,-524.59,0.00019753,2]
[359842378,1746367843385,-261.21,0.00019753,2]
[359842379,1746367843394,-450.0,0.00019753,2]
[359842380,1746367843401,-450.0,0.00019753,2]
[359842381,1746367843410,-450.0,0.00019753,2]
[359842382,1746367843424,-249.67,0.00019753,2]
[359842383,1746367843435,-450.0,0.00019753,2]
[359842385,1746367843444,-450.0,0.00019753,2]
[359842386,1746367843678,-526.44,0.00019753,2]
[359842387,1746367843688,-450.0,0.00019753,2]
[359842388,1746367843697,-591.8,0.00019753,2]
[359842389,1746367843707,-330.0,0.00019753,2]
[359842390,1746367843716,-527.91,0.00019753,2]
[359842391,1746367843726,-450.0,0.00019753,2]
[359842392,1746367843735,-450.0,0.00019753,2]
[359842394,1746367843745,-450.0,0.00019753,2]
[359842395,1746367843755,-450.0,0.00019753,2]
[359842397,1746367843764,-450.0,0.00019753,2]
[359842398,1746367843774,-450.0,0.00019753,2]
[359842399,1746367843783,-450.0,0.00019753,2]
[359842400,1746367843792,-450.0,0.00019753,2]
[359842401,1746367843801,-450.0,0.00019753,2]
[359842402,1746367843811,-450.0,0.00019753,2]
[359842403,1746367843820,-450.0,0.00019753,2]
[359842404,1746367843829,-470.0,0.00019753,2]
[359842405,1746367843839,-450.0,0.00019753,2]
[359842406,1746367843848,-450.0,0.00019753,2]
[359842407,1746367843857,-450.0,0.00019753,2]
[359842408,1746367843867,-450.0,0.00019753,2]
[359842409,1746367843876,-563.52,0.00019753,2]
[359842410,1746367843885,-450.0,0.00019753,2]
[359842411,1746367843894,-450.0,0.00019753,2]
[359842412,1746367843903,-450.0,0.00019753,2]
[359842413,1746367843912,-1318.74,0.00019753,2]
[359842414,1746367843922,-450.0,0.00019753,2]
[359842415,1746367843932,-450.0,0.00019753,2]
[359842416,1746367843941,-450.0,0.00019753,2]
[359842417,1746367843950,-450.0,0.00019753,2]
[359842418,1746367843959,-470.0,0.00019753,2]
[359842419,1746367843968,-276.28254798,0.00019753,2]
[359842420,1746367843977,-450.0,0.00019753,2]
[359842421,1746367843986,-450.0,0.00019753,2]
[359842422,1746367843995,-450.0,0.00019753,2]
[359842423,1746367844004,-450.0,0.00019753,2]
[359842424,1746367844013,-470.0,0.00019753,2]
[359842425,1746367844022,-470.0,0.00019753,2]
[359842426,1746367844031,-450.0,0.00019753,2]
[359842427,1746367844040,-450.0,0.00019753,2]
[359842428,1746367844049,-450.0,0.00019753,2]
[359842429,1746367844059,-450.0,0.00019753,2]
[359842430,1746367844068,-450.0,0.00019753,2]
[359842431,1746367844078,-470.0,0.00019753,2]
[359842432,1746367844087,-450.0,0.00019753,2]
[359842433,1746367844096,-450.0,0.00019753,2]
[359842434,1746367844105,-450.0,0.00019753,2]
[359842435,1746367844115,-450.0,0.00019753,2]
[359842436,1746367844125,-470.0,0.00019753,2]
[359842437,1746367844135,-450.0,0.00019753,2]
[359842438,1746367844144,-450.0,0.00019753,2]
[359842439,1746367844154,-563.02,0.00019753,2]
[359842440,1746367844163,-450.0,0.00019753,2]
[359842441,1746367844172,-450.0,0.00019753,2]
[359842442,1746367844181,-450.0,0.00019753,2]
[359842443,1746367844190,-450.0,0.00019753,2]
[359842444,1746367844199,-450.0,0.00019753,2]
[359842445,1746367844208,-971.1,0.00019753,2]
[359842446,1746367844217,-450.0,0.00019753,2]
[359842447,1746367844227,-450.0,0.00019753,2]
[359842448,1746367844235,-450.0,0.00019753,2]
[359842449,1746367844245,-3081.9,0.00019753,2]
[359842450,1746367844254,-450.0,0.00019753,2]
[359842451,1746367844263,-450.0,0.00019753,2]
[359842452,1746367844272,-2770.47,0.00019753,2]
[359842453,1746367844281,-195.03,0.00019753,2]
[359842454,1746367844290,-450.0,0.00019753,2]
[359842455,1746367844299,-498.76764661,0.00019753,2]
[359842456,1746367844308,-179.3207823,0.00019753,2]
[359842457,1746367844317,-520.47,0.00019753,2]
[359842458,1746367844326,-450.0,0.00019753,2]
[359842459,1746367844335,-323.91,0.00019753,2]
[359842460,1746367844344,-749.23,0.00019753,2]
[359842461,1746367844354,-450.0,0.00019753,2]
[359842462,1746367844363,-450.0,0.00019753,2]
[359842463,1746367844372,-450.0,0.00019753,2]
[359842464,1746367844381,-450.0,0.00019753,2]
[359842465,1746367844390,-450.0,0.00019753,2]
[359842466,1746367844399,-161.6,0.00019753,2]
[359842467,1746367844409,-453.02,0.00019753,2]
[359842468,1746367844420,-450.0,0.00019753,2]
[359842469,1746367844430,-291.92,0.00019753,2]
[359842470,1746367844439,-30732.35,0.00019753,2]
[359842471,1746367844448,-526.64,0.00019753,2]
[359842472,1746367844458,-450.0,0.00019753,2]
[359842473,1746367844468,-450.0,0.00019753,2]
[359842474,1746367844477,-450.0,0.00019753,2]
[359842475,1746367844487,-221.71,0.00019753,2]
[359842476,1746367844497,-557.97,0.00019753,2]
[359842477,1746367844506,-208.32941913,0.00019753,2]
[359842478,1746367844516,-450.0,0.00019753,2]
[359842479,1746367844525,-450.0,0.00019753,2]
[359842480,1746367844534,-450.0,0.00019753,2]
[359842481,1746367844543,-450.0,0.00019753,2]
[359842482,1746367844552,-450.0,0.00019753,2]
[359842483,1746367844561,-450.0,0.00019753,2]
[359842484,1746367844573,-510.11,0.00019753,2]
[359842485,1746367844583,-450.0,0.00019753,2]
[359842486,1746367844592,-1287.01,0.00019753,2]
[359842487,1746367844601,-450.0,0.00019753,2]
[359842488,1746367844611,-1416.49,0.00019753,2]
[359842489,1746367844623,-450.0,0.00019753,2]
[359842490,1746367844632,-1732.81,0.00019753,2]
[359842491,1746367844643,-450.0,0.00019753,2]
[359842492,1746367844653,-450.0,0.00019753,2]
[359842493,1746367844662,-260.03,0.00019753,2]
[359842494,1746367844671,-569.44,0.00019753,2]
[359842495,1746367844681,-450.0,0.00019753,2]
[359842496,1746367844690,-514.35,0.00019753,2]
[359842497,1746367844699,-450.0,0.00019753,2]
[359842498,1746367844708,-450.0,0.00019753,2]
[359842499,1746367844717,-450.0,0.00019753,2]
[359842500,1746367844726,-450.0,0.00019753,2]
[359842501,1746367844735,-450.0,0.00019753,2]
[359842502,1746367844745,-348.69917208,0.00019753,2]
[359842503,1746367844754,-450.0,0.00019753,2]
[359842504,1746367844763,-450.0,0.00019753,2]
[359842505,1746367844773,-450.0,0.00019753,2]
[359842506,1746367844782,-450.0,0.00019753,2]
[359842507,1746367844791,-1214.24,0.00019753,2]
[359842508,1746367844800,-584.49,0.00019753,2]
[359842509,1746367844809,-450.0,0.00019753,2]
[359842510,1746367844819,-1159.13,0.00019753,2]
[359842511,1746367844828,-450.0,0.00019753,2]
[359842512,1746367844837,-450.0,0.00019753,2]
[359842513,1746367844847,-450.0,0.00019753,2]
[359842514,1746367844856,-450.0,0.00019753,2]
[359842515,1746367844865,-450.0,0.00019753,2]
[359842516,1746367844875,-450.0,0.00019753,2]
[359842517,1746367844884,-742.88,0.00019753,2]
[359842518,1746367844893,-450.0,0.00019753,2]
[359842519,1746367844902,-450.0,0.00019753,2]
[359842520,1746367844911,-699.07,0.00019753,2]
[359842521,1746367844920,-550.09,0.00019753,2]
[359842522,1746367844929,-450.0,0.00019753,2]